fUST/lending_fUST_20250827
["ID","MTS","AMOUNT","RATE_DAILY","PERIOD"]
[381637309,1756300250534,-480.0,0.00022191,2]
[381637311,1756300250543,-480.0,0.00022191,2]
[381637312,1756300250553,-480.0,0.00022191,2]
[381637314,1756300250562,-1375.52,0.00022191,2]
[381637316,1756300250572,-609.53,0.00022191,2]
[381637318,1756300250581,-480.0,0.00022191,2]
[381637320,1756300250591,-480.0,0.00022191,2]
[381637322,1756300250601,-480.0,0.00022191,2]
[381637323,1756300250610,-480.0,0.00022191,2]
[381637325,1756300250619,-629.17,0.00022191,2]
[381637327,1756300250629,-480.0,0.00022191,2]
[381637329,1756300250638,-629.17,0.00022191,2]
[381637331,1756300250647,-480.0,0.00022191,2]
[381637333,1756300250657,-482.40434732,0.00022191,2]
[381637335,1756300250666,-480.0,0.00022191,2]
[381637337,1756300250677,-480.0,0.00022191,2]
[381637338,1756300250686,-879.01,0.00022191,2]
[381637340,1756300250695,-480.0,0.00022191,2]
[381637342,1756300250705,-480.0,0.00022191,2]
[381637344,1756300250715,-480.0,0.00022191,2]
[381637346,1756300250725,-553.05,0.00022191,2]
[381637348,1756300250734,-480.0,0.00022191,2]
[381637350,1756300250744,-151.0,0.00022191,7]
[381637351,1756300250754,-511.27,0.00022191,2]
[381637353,1756300250764,-480.0,0.00022191,2]
[381637355,1756300250773,-480.0,0.00022191,2]
[381637357,1756300250783,-480.0,0.00022191,2]
[381637359,1756300250793,-480.0,0.00022191,2]
[381637361,1756300250803,-480.0,0.00022191,2]
[381637363,1756300250812,-480.0,0.00022191,2]
[381637364,1756300250822,-480.0,0.00022191,2]
[381637366,1756300250831,-480.0,0.00022191,2]
[381637368,1756300250841,-480.0,0.00022191,2]
[381637370,1756300250851,-1185.91,0.00022191,2]
[381637372,1756300250861,-480.0,0.00022191,2]
[381637374,1756300250871,-1100.79,0.00022191,2]
[381637376,1756300250881,-480.0,0.00022191,2]
[381637377,1756300250890,-480.0,0.00022191,2]
[381637379,1756300250900,-480.0,0.00022191,2]
[381637381,1756300250911,-480.0,0.00022191,2]
[381637383,1756300250921,-480.0,0.00022191,2]
[381637385,1756300250930,-480.0,0.00022191,2]
[381637387,1756300250940,-480.0,0.00022191,2]
[381637388,1756300250949,-480.0,0.00022191,2]
[381637390,1756300250959,-674.82,0.00022191,2]
[381637392,1756300250969,-480.0,0.00022191,2]
[381637394,1756300250978,-1441.98,0.00022191,2]
[381637396,1756300250988,-1582.66,0.00022191,2]
[381637398,1756300250997,-480.0,0.00022191,2]
[381637400,1756300251006,-3079.94,0.00022191,2]
[381637402,1756300251016,-558.78,0.00022191,2]
[381637404,1756300251025,-480.0,0.00022191,2]
[381637405,1756300251035,-1247.25,0.00022191,2]
[381637407,1756300251044,-512.86,0.00022191,2]
[381637409,1756300251053,-535.83,0.00022191,2]
[381637411,1756300251063,-1195.28,0.00022191,2]
[381637413,1756300251072,-480.0,0.00022191,2]
[381637415,1756300251081,-619.84,0.00022191,2]
[381637416,1756300251090,-1012.69,0.00022191,2]
[381637418,1756300251099,-480.0,0.00022191,2]
[381637420,1756300251109,-480.0,0.00022191,2]
[381637421,1756300251118,-1558.31,0.00022191,2]
[381637423,1756300251127,-480.0,0.00022191,2]
[381637425,1756300251136,-575.32,0.00022191,2]
[381637427,1756300251146,-480.0,0.00022191,2]
[381637429,1756300251157,-482.24467229,0.00022191,2]
[381637431,1756300251167,-480.0,0.00022191,2]
[381637433,1756300251176,-480.0,0.00022191,2]
[381637434,1756300251185,-480.0,0.00022191,2]
[381637436,1756300251196,-480.0,0.00022191,2]
[381637438,1756300251205,-480.0,0.00022191,2]
[381637440,1756300251214,-519.91388181,0.00022191,2]
[381637442,1756300251224,-480.0,0.00022191,2]
[381637444,1756300251233,-480.0,0.00022191,2]
[381637445,1756300251242,-1467.04,0.00022191,2]
[381637447,1756300251251,-480.0,0.00022191,2]
[381637449,1756300251260,-480.0,0.00022191,2]
[381637451,1756300251270,-1873.26,0.00022191,2]
[381637453,1756300251279,-480.0,0.00022191,2]
[381637455,1756300251288,-480.0,0.00022191,2]
[381637456,1756300251297,-480.0,0.00022191,2]
[381637458,1756300251306,-480.0,0.00022191,2]
[381637460,1756300251316,-504.11,0.00022191,2]
[381637462,1756300251329,-480.0,0.00022191,2]
[381637464,1756300251339,-480.0,0.00022191,2]
[381637466,1756300251348,-480.0,0.00022191,2]
[381637468,1756300251358,-508.08,0.00022191,2]
[381637469,1756300251367,-480.0,0.00022191,2]
[381637471,1756300251376,-480.0,0.00022191,2]
[381637473,1756300251386,-480.0,0.00022191,2]
[381637475,1756300251395,-2486.85,0.00022191,2]
[381637477,1756300251413,-480.0,0.00022191,2]
[381637479,1756300251427,-480.0,0.00022191,2]
[381637481,1756300251436,-480.0,0.00022191,2]
[381637482,1756300251446,-480.0,0.00022191,2]
[381637484,1756300251455,-480.0,0.00022191,2]
[381637486,1756300251464,-480.0,0.00022191,2]
[381637488,1756300251474,-480.0,0.00022191,2]
[381637490,1756300251483,-466.46234252,0.00022191,2]
[381637492,1756300251492,-7496.55,0.00022191,2]
[381637494,1756300251502,-480.0,0.00022191,2]
[381637495,1756300251511,-480.0,0.00022191,2]
[381637497,1756300251520,-768.18,0.00022191,2]
[381637499,1756300251529,-480.0,0.00022191,2]
[381637501,1756300251539,-820.29,0.00022191,2]
[381637503,1756300251548,-480.0,0.00022191,2]
[381637505,1756300251558,-480.0,0.00022191,2]
[381637507,1756300251567,-487.65,0.00022191,2]
[381637509,1756300251576,-480.0,0.00022191,2]
[381637510,1756300251585,-480.0,0.00022191,2]
[381637512,1756300251594,-1126.02,0.00022191,2]
[381637514,1756300251605,-480.0,0.00022191,2]
[381637516,1756300251614,-1019.66,0.00022191,2]
[381637518,1756300251624,-480.0,0.00022191,2]
[381637520,1756300251633,-4097.76,0.00022191,2]
[381637521,1756300251642,-480.0,0.00022191,2]
[381637523,1756300251651,-1538.8,0.00022191,2]
[381637525,1756300251661,-480.0,0.00022191,2]
[381637527,1756300251671,-480.0,0.00022191,2]
[381637529,1756300251680,-553.39,0.00022191,2]
[381637531,1756300251689,-480.0,0.00022191,2]
[381637533,1756300251698,-480.0,0.00022191,2]
[381637534,1756300251708,-563.16,0.00022191,2]
[381637536,1756300251717,-480.0,0.00022191,2]
[381637538,1756300251726,-480.0,0.00022191,2]
[381637540,1756300251736,-866.73,0.00022191,2]
[381637542,1756300251745,-532.37,0.00022191,2]
[381637544,1756300251754,-480.0,0.00022191,2]
[381637545,1756300251763,-1089.92,0.00022191,2]
[381637547,1756300251773,-480.0,0.00022191,2]
[381637549,1756300251782,-480.0,0.00022191,2]
[381637551,1756300251792,-546.95,0.00022191,2]
[381637553,1756300251802,-480.0,0.00022191,2]
[381637555,1756300251812,-480.0,0.00022191,2]
[381637557,1756300251822,-480.0,0.00022191,2]
[381637559,1756300251831,-480.0,0.00022191,2]
[381637561,1756300251840,-480.0,0.00022191,2]
[381637563,1756300251850,-480.0,0.00022191,2]
[381637565,1756300251859,-480.0,0.00022191,2]
[381637566,1756300251868,-480.0,0.00022191,2]
[381637568,1756300251877,-482.88986836,0.00022191,2]
[381637570,1756300251886,-619.83,0.00022191,2]
[381637572,1756300251896,-480.0,0.00022191,2]
[381637574,1756300251906,-480.0,0.00022191,2]
[381637576,1756300251915,-480.0,0.00022191,2]
[381637578,1756300251924,-480.0,0.00022191,2]
[381637579,1756300251933,-480.0,0.00022191,2]
[381637581,1756300251942,-1480.58,0.00022191,2]
[381637583,1756300251952,-480.0,0.00022191,2]
[381637585,1756300251961,-1080.29,0.00022191,2]
[381637587,1756300251970,-2783.48,0.00022191,2]
[381637589,1756300251980,-849.03,0.00022191,2]
[381637591,1756300251989,-480.0,0.00022191,2]
[381637593,1756300251998,-3788.9,0.00022191,2]
[381637595,1756300252007,-480.0,0.00022191,2]
[381637596,1756300252016,-1045.46,0.00022191,2]
[381637598,1756300252025,-527.62,0.00022191,2]
[381637600,1756300252035,-480.0,0.00022191,2]
[381637602,1756300252044,-480.0,0.00022191,2]
[381637604,1756300252053,-1135.21,0.00022191,2]
[381637606,1756300252062,-480.0,0.00022191,2]
[381637608,1756300252072,-480.0,0.00022191,2]
[381637609,1756300252081,-1489.59,0.00022191,2]
[381637611,1756300252091,-480.0,0.00022191,2]
[381637613,1756300252100,-480.0,0.00022191,2]
[381637615,1756300252109,-480.0,0.00022191,2]
[381637617,1756300252119,-480.0,0.00022191,2]
[381637619,1756300252128,-1171.32,0.00022191,2]
[381637621,1756300252137,-480.0,0.00022191,2]
[381637623,1756300252147,-885.58,0.00022191,2]
[381637624,1756300252156,-480.0,0.00022191,2]
[381637626,1756300252166,-480.0,0.00022191,2]
[381637628,1756300252175,-506.58,0.00022191,2]
[381637630,1756300252187,-1373.52,0.00022191,2]
[381637632,1756300252197,-521.66,0.00022191,2]
[381637640,1756300252264,-994.97,0.00022191,2]
[381637641,1756300252274,-2291.1,0.00022191,2]
[381637643,1756300252283,-480.0,0.00022191,2]
[381637645,1756300252292,-4941.28,0.00022191,2]
[381637647,1756300252302,-480.0,0.00022191,2]
[381637649,1756300252311,-836.96,0.00022191,2]
[381637651,1756300252322,-480.0,0.00022191,2]
[381637652,1756300252336,-805.85,0.00022191,2]
[381637654,1756300252346,-480.0,0.00022191,2]
[381637656,1756300252357,-480.0,0.00022191,2]
[381637658,1756300252367,-480.0,0.00022191,2]
[381637660,1756300252378,-584.58,0.00022191,2]
[381637662,1756300252388,-509.64,0.00022191,2]
[381637664,1756300252399,-480.0,0.00022191,2]
[381637666,1756300252415,-826.49,0.00022191,2]
[381637667,1756300252425,-480.0,0.00022191,2]
[381637669,1756300252436,-480.0,0.00022191,2]
[381637671,1756300252446,-480.0,0.00022191,2]
[381637673,1756300252455,-480.0,0.00022191,2]
[381637675,1756300252465,-495.41,0.00022191,2]
[381637677,1756300252474,-642.66,0.00022191,2]
[381637679,1756300252484,-826.37,0.00022191,2]
[381637680,1756300252494,-647.14,0.00022191,2]
[381637682,1756300252503,-480.0,0.00022191,2]
[381637684,1756300252513,-480.0,0.00022191,2]
[381637686,1756300252523,-480.0,0.00022191,2]
[381637688,1756300252532,-480.0,0.00022191,2]
[381637690,1756300252541,-480.0,0.00022191,2]
[381637691,1756300252550,-480.0,0.00022191,2]
[381637693,1756300252560,-480.0,0.00022191,2]
[381637695,1756300252570,-713.97,0.00022191,2]
[381637697,1756300252579,-706.08,0.00022191,2]
[381637699,1756300252589,-480.0,0.00022191,2]
[381637701,1756300252599,-684.55,0.00022191,2]
[381637702,1756300252608,-1220.94,0.00022191,2]
[381637704,1756300252618,-562.5,0.00022191,2]
[381637706,1756300252628,-480.0,0.00022191,2]
[381637708,1756300252638,-480.0,0.00022191,2]
[381637710,1756300252647,-480.0,0.00022191,2]
[381637712,1756300252661,-480.0,0.00022191,2]
[381637714,1756300252671,-480.0,0.00022191,2]
[381637716,1756300252681,-650.16,0.00022191,2]
[381637717,1756300252691,-480.0,0.00022191,2]
[381637719,1756300252701,-480.0,0.00022191,2]
[381637721,1756300252711,-543.46,0.00022191,2]
[381637723,1756300252721,-480.0,0.00022191,2]
[381637725,1756300252731,-181.31248778,0.000222,69]
[381637727,1756300252740,-300.0,0.00022213,2]
[381637729,1756300252750,-420.0,0.00022213,2]
[381637731,1756300252759,-1680.0,0.00022215,2]
[381637732,1756300252768,-151.0,0.000223,10]
[381637734,1756300252778,-151.0,0.000223,6]
[381637736,1756300252787,-1680.0,0.00022319,2]
[381637738,1756300252797,-236.74221218,0.00022364,2]
[381637740,1756300252806,-201.93286099,0.00022387,2]
[381637742,1756300252817,-480.0,0.00022464,2]
[381637744,1756300252827,-373.24998421,0.00022465,2]
[381637745,1756300252836,-480.0,0.00022465,2]
[381637747,1756300252846,-480.0,0.00022465,2]
[381637749,1756300252855,-484.65,0.00022465,2]
[381637751,1756300252865,-480.0,0.00022465,2]
[381637753,1756300252874,-602.96,0.00022465,2]
[381637755,1756300252884,-480.0,0.00022465,2]
[381637757,1756300252893,-480.0,0.00022465,2]
[381637759,1756300252906,-480.0,0.00022465,2]
[381637760,1756300252915,-480.0,0.00022465,2]
[381637762,1756300252924,-602.45,0.00022465,2]
[381637764,1756300252936,-480.0,0.00022465,2]
[381637766,1756300252945,-480.0,0.00022465,2]
[381637768,1756300252955,-480.0,0.00022465,2]
[381637770,1756300252965,-480.0,0.00022465,2]
[381637772,1756300252974,-480.0,0.00022465,2]
[381637773,1756300252983,-480.0,0.00022465,2]
[381637775,1756300252992,-480.0,0.00022465,2]
[381637777,1756300253001,-480.0,0.00022465,2]
[381637779,1756300253010,-480.0,0.00022465,2]
[381637781,1756300253019,-480.0,0.00022465,2]
[381637783,1756300253028,-517.62,0.00022465,2]
[381637785,1756300253037,-480.0,0.00022465,2]
[381637786,1756300253047,-480.0,0.00022465,2]
[381637788,1756300253056,-480.0,0.00022465,2]
[381637790,1756300253065,-480.0,0.00022465,2]
[381637792,1756300253074,-301.59797681,0.00022465,2]
[381637794,1756300253084,-480.0,0.00022465,2]
[381637796,1756300253093,-480.0,0.00022465,2]
[381637798,1756300253102,-480.0,0.00022465,2]
[381637799,1756300253110,-480.0,0.00022465,2]
[381637801,1756300253120,-863.12,0.00022465,2]
[381637803,1756300253129,-480.0,0.00022465,2]
[381637805,1756300253138,-480.0,0.00022465,2]
[381637807,1756300253147,-480.0,0.00022465,2]
[381637808,1756300253158,-602.59,0.00022465,2]
[381637810,1756300253167,-480.0,0.00022465,2]
[381637812,1756300253176,-480.0,0.00022465,2]
[381637814,1756300253185,-480.0,0.00022465,2]
[381637816,1756300253196,-480.0,0.00022465,2]
[381637818,1756300253204,-480.0,0.00022465,2]
[381637820,1756300253213,-710.45,0.00022465,2]
[381637821,1756300253223,-480.0,0.00022465,2]
[381637823,1756300253232,-480.0,0.00022465,2]
[381637825,1756300253241,-480.0,0.00022465,2]
[381637827,1756300253250,-248.01080789,0.00022465,2]
[381637829,1756300253259,-480.0,0.00022465,2]
[381637830,1756300253268,-480.0,0.00022465,2]
[381637832,1756300253277,-480.0,0.00022465,2]
[381637834,1756300253286,-480.0,0.00022465,2]
[381637836,1756300253295,-480.0,0.00022465,2]
[381637838,1756300253304,-480.0,0.00022465,2]
[381637839,1756300253313,-480.0,0.00022465,2]
[381637840,1756300253323,-740.24,0.00022465,2]
[381637841,1756300253335,-480.0,0.00022465,2]
[381637842,1756300253344,-549.84,0.00022465,2]
[381637843,1756300253353,-470.18249791,0.00022465,2]
[381637844,1756300253362,-480.0,0.00022465,2]
[381637845,1756300253372,-480.0,0.00022465,2]
[381637846,1756300253381,-480.0,0.00022465,2]
[381637847,1756300253390,-480.0,0.00022465,2]
[381637848,1756300253399,-480.0,0.00022465,2]
[381637849,1756300253411,-480.0,0.00022465,2]
[381637850,1756300253421,-480.0,0.00022465,2]
[381637851,1756300253430,-480.0,0.00022465,2]
[381637852,1756300253440,-480.0,0.00022465,2]
[381637853,1756300253449,-1190.92,0.00022465,2]
[381637854,1756300253458,-480.0,0.00022465,2]
[381637855,1756300253467,-480.0,0.00022465,2]
[381637856,1756300253477,-480.0,0.00022465,2]
[381637857,1756300253487,-653.11,0.00022465,2]
[381637858,1756300253497,-480.0,0.00022465,2]
[381637859,1756300253506,-701.02,0.00022465,2]
[381637860,1756300253516,-480.0,0.00022465,2]
[381637861,1756300253525,-480.0,0.00022465,2]
[381637862,1756300253533,-480.0,0.00022465,2]
[381637863,1756300253542,-480.0,0.00022465,2]
[381637864,1756300253551,-480.0,0.00022465,2]
[381637865,1756300253560,-480.0,0.00022465,2]
[381637866,1756300253569,-561.6,0.00022465,2]
[381637867,1756300253579,-480.0,0.00022465,2]
[381637868,1756300253589,-536.08,0.00022465,2]
[381637869,1756300253598,-785.56,0.00022465,2]
[381637870,1756300253607,-578.44869817,0.00022465,2]
[381637871,1756300253617,-707.7,0.00022465,2]
[381637872,1756300253626,-480.0,0.00022465,2]
[381637873,1756300253636,-480.0,0.00022465,2]
[381637874,1756300253645,-480.0,0.00022465,2]
[381637875,1756300253655,-480.0,0.00022465,2]
[381637876,1756300253664,-848.07,0.00022465,2]
[381637877,1756300253674,-480.0,0.00022465,2]
[381637878,1756300253683,-480.0,0.00022465,2]
[381637879,1756300253693,-589.08852748,0.00022465,2]
[381637880,1756300253702,-480.0,0.00022465,2]
[381637881,1756300253711,-480.0,0.00022465,2]
[381637882,1756300253720,-480.0,0.00022465,2]
[381637883,1756300253729,-480.0,0.00022465,2]
[381637884,1756300253738,-480.0,0.00022465,2]
[381637885,1756300253747,-480.0,0.00022465,2]
[381637886,1756300253756,-151.0,0.00022465,7]
[381637887,1756300253766,-538.35907122,0.00022465,2]
[381637888,1756300253775,-480.0,0.00022465,2]
[381637889,1756300253784,-480.0,0.00022465,2]
[381637890,1756300253793,-501.92130333,0.00022465,2]
[381637891,1756300253803,-480.0,0.00022465,2]
[381637892,1756300253812,-480.0,0.00022465,2]
[381637893,1756300253821,-480.0,0.00022465,2]
[381637894,1756300253830,-480.0,0.00022465,2]
[381637895,1756300253840,-480.0,0.00022465,2]
[381637896,1756300253849,-1132.16,0.00022465,2]
[381637897,1756300253858,-480.0,0.00022465,2]
[381637898,1756300253867,-480.0,0.00022465,2]
[381637899,1756300253876,-480.0,0.00022465,2]
[381637900,1756300253886,-480.0,0.00022465,2]
[381637901,1756300253895,-668.2,0.00022465,2]
[381637902,1756300253905,-611.28681639,0.00022465,2]
[381637903,1756300253915,-480.0,0.00022465,2]
[381637904,1756300253924,-480.0,0.00022465,2]
[381637905,1756300253933,-480.0,0.00022465,2]
[381637906,1756300253942,-592.01,0.00022465,2]
[381637907,1756300253952,-480.0,0.00022465,2]
[381637908,1756300253961,-480.0,0.00022465,2]
[381637909,1756300253971,-480.0,0.00022465,2]
[381637910,1756300253980,-480.0,0.00022465,2]
[381637911,1756300253989,-376.32220735,0.00022465,2]
[381637912,1756300253999,-480.0,0.00022465,2]
[381637913,1756300254008,-480.0,0.00022465,2]
[381637914,1756300254017,-480.0,0.00022465,2]
[381637916,1756300254027,-480.0,0.00022465,2]
[381637917,1756300254036,-1077.95,0.00022465,2]
[381637918,1756300254045,-480.0,0.00022465,2]
[381637919,1756300254054,-480.0,0.00022465,2]
[381637920,1756300254064,-480.0,0.00022465,2]
[381637922,1756300254074,-480.0,0.00022465,2]
[381637923,1756300254083,-480.0,0.00022465,2]
[381637924,1756300254092,-480.0,0.00022465,2]
[381637926,1756300254101,-480.0,0.00022465,2]
[381637927,1756300254110,-480.0,0.00022465,2]
[381637929,1756300254119,-480.0,0.00022465,2]
[381637930,1756300254128,-480.0,0.00022465,2]
[381637932,1756300254137,-528.98,0.00022465,2]
[381637934,1756300254146,-480.0,0.00022465,2]
[381637937,1756300254157,-557.3,0.00022465,2]
[381637938,1756300254166,-480.0,0.00022465,2]
[381637941,1756300254176,-151.0,0.00022465,7]
[381637943,1756300254186,-482.45,0.00022465,2]
[381637945,1756300254195,-480.0,0.00022465,2]
[381637947,1756300254204,-480.0,0.00022465,2]
[381637949,1756300254214,-622.33,0.00022465,2]
[381637951,1756300254223,-480.0,0.00022465,2]
[381637952,1756300254233,-480.0,0.00022465,2]
[381637954,1756300254243,-522.2,0.00022465,2]
[381637957,1756300254252,-480.0,0.00022465,2]
[381637958,1756300254262,-151.0,0.00022465,7]
[381637960,1756300254272,-480.0,0.00022465,2]
[381637962,1756300254281,-480.0,0.00022465,2]
[381637964,1756300254291,-480.0,0.00022465,2]
[381637966,1756300254300,-682.64,0.00022465,2]
[381637968,1756300254310,-214.401343,0.00022465,7]
[381637970,1756300254323,-480.0,0.00022465,2]
[381637972,1756300254332,-480.0,0.00022465,2]
[381637974,1756300254341,-480.0,0.00022465,2]
[381637976,1756300254351,-480.0,0.00022465,2]
[381637979,1756300254361,-480.0,0.00022465,2]
[381637980,1756300254371,-480.0,0.00022465,2]
[381637983,1756300254380,-480.0,0.00022465,2]
[381637985,1756300254392,-480.0,0.00022465,2]
[381637987,1756300254402,-480.0,0.00022465,2]
[381637989,1756300254413,-496.41,0.00022465,2]
[381637991,1756300254422,-480.0,0.00022465,2]
[381637993,1756300254432,-480.0,0.00022465,2]
[381637995,1756300254441,-480.0,0.00022465,2]
[381637997,1756300254451,-480.0,0.00022465,2]
[381637999,1756300254461,-480.0,0.00022465,2]
[381638001,1756300254471,-961.54,0.00022465,2]
[381638003,1756300254480,-480.0,0.00022465,2]
[381638005,1756300254490,-541.92,0.00022465,2]
[381638007,1756300254499,-480.0,0.00022465,2]
[381638009,1756300254509,-480.0,0.00022465,2]
[381638011,1756300254518,-480.0,0.00022465,2]
[381638013,1756300254528,-489.46,0.00022465,2]
[381638015,1756300254537,-480.0,0.00022465,2]
[381638017,1756300254547,-483.97,0.00022465,2]
[381638019,1756300254557,-572.57,0.00022465,2]
[381638021,1756300254567,-524.23,0.00022465,2]
[381638023,1756300254576,-480.0,0.00022465,2]
[381638025,1756300254586,-480.0,0.00022465,2]
[381638027,1756300254596,-787.06,0.00022465,2]
[381638029,1756300254606,-480.0,0.00022465,2]
[381638031,1756300254616,-518.41,0.00022465,2]
[381638033,1756300254626,-480.0,0.00022465,2]
[381638035,1756300254635,-480.0,0.00022465,2]
[381638037,1756300254644,-480.0,0.00022465,2]
[381638039,1756300254654,-480.0,0.00022465,2]
[381638041,1756300254665,-480.0,0.00022465,2]
[381638043,1756300254674,-480.0,0.00022465,2]
[381638045,1756300254684,-739.43,0.00022465,2]
[381638047,1756300254693,-480.0,0.00022465,2]
[381638049,1756300254703,-480.0,0.00022465,2]
[381638051,1756300254714,-1255.57,0.00022465,2]
[381638053,1756300254724,-493.24,0.00022465,2]
[381638055,1756300254734,-480.0,0.00022465,2]
[381638057,1756300254744,-480.0,0.00022465,2]
[381638059,1756300254753,-598.58,0.00022465,2]
[381638061,1756300254763,-641.42,0.00022465,2]
[381638063,1756300254773,-480.0,0.00022465,2]
[381638065,1756300254783,-480.0,0.00022465,2]
[381638067,1756300254793,-728.84,0.00022465,2]
[381638069,1756300254803,-480.0,0.00022465,2]
[381638071,1756300254812,-480.0,0.00022465,2]
[381638073,1756300254822,-696.31,0.00022465,2]
[381638075,1756300254832,-480.0,0.00022465,2]
[381638077,1756300254841,-480.0,0.00022465,2]
[381638079,1756300254851,-480.0,0.00022465,2]
[381638081,1756300254861,-600.0,0.00022465,2]
[381638083,1756300254871,-550.69,0.00022465,2]
[381638085,1756300254881,-480.0,0.00022465,2]
[381638087,1756300254891,-262.70740633,0.00022465,2]
[381638089,1756300254901,-480.0,0.00022465,2]
[381638091,1756300254912,-555.64,0.00022465,2]
[381638093,1756300254921,-480.0,0.00022465,2]
[381638095,1756300254931,-480.0,0.00022465,2]
[381638097,1756300254941,-480.0,0.00022465,2]
[381638099,1756300254951,-480.0,0.00022465,2]
[381638101,1756300254961,-480.0,0.00022465,2]
[381638103,1756300254970,-480.0,0.00022465,2]
[381638105,1756300254980,-480.0,0.00022465,2]
[381638107,1756300254990,-480.0,0.00022465,2]
[381638109,1756300255000,-480.0,0.00022465,2]
[381638111,1756300255010,-516.93,0.00022465,2]
[381638113,1756300255020,-480.0,0.00022465,2]
[381638115,1756300255030,-480.0,0.00022465,2]
[381638117,1756300255040,-480.0,0.00022465,2]
[381638120,1756300255050,-480.0,0.00022465,2]
[381638122,1756300255060,-480.0,0.00022465,2]
[381638124,1756300255071,-500.0,0.00022465,2]
[381638126,1756300255081,-480.0,0.00022465,2]
[381638128,1756300255090,-4811.31,0.00022465,2]
[381638130,1756300255100,-480.0,0.00022465,2]
[381638132,1756300255109,-480.0,0.00022465,2]
[381638134,1756300255119,-480.0,0.00022465,2]
[381638136,1756300255128,-480.0,0.00022465,2]
[381638138,1756300255138,-480.0,0.00022465,2]
[381638140,1756300255148,-480.0,0.00022465,2]
[381638142,1756300255157,-892.28,0.00022465,2]
[381638144,1756300255168,-480.0,0.00022465,2]
[381638146,1756300255178,-648.11,0.00022465,2]
[381638148,1756300255188,-480.0,0.00022465,2]
[381638150,1756300255197,-480.0,0.00022465,2]
[381638152,1756300255207,-628.16,0.00022465,2]
[381638154,1756300255216,-480.0,0.00022465,2]
[381638155,1756300255226,-480.0,0.00022465,2]
[381638158,1756300255236,-480.0,0.00022465,2]
[381638160,1756300255246,-496.15,0.00022465,2]
[381638161,1756300255256,-520.69,0.00022465,2]
[381638164,1756300255266,-480.0,0.00022465,2]
[381638165,1756300255277,-700.56,0.00022465,2]
[381638167,1756300255287,-480.0,0.00022465,2]
[381638170,1756300255298,-480.0,0.00022465,2]
[381638171,1756300255307,-480.0,0.00022465,2]
[381638174,1756300255318,-531.78,0.00022465,2]
[381638176,1756300255332,-480.0,0.00022465,2]
[381638178,1756300255341,-480.0,0.00022465,2]
[381638180,1756300255351,-480.0,0.00022465,2]
[381638182,1756300255361,-480.0,0.00022465,2]
[381638184,1756300255371,-2061.31,0.00022465,2]
[381638186,1756300255383,-548.5,0.00022465,2]
[381638188,1756300255393,-480.0,0.00022465,2]
[381638190,1756300255403,-480.0,0.00022465,2]